bitfinex-derivatives/quotes_SOLF0:USTF0_20250221
["timestamp","ask_amount","ask_price","bid_price","bid_amount"]
[1740104453611,5.7212,174.73,174.72,0.04318853]
[1740104454210,15.91927126,174.73,174.72,8.853e-05]
[1740104455413,10.19807126,174.73,174.61,10.19807126]
[1740104455612,10.19807126,174.66,174.61,10.19807126]
[1740104455814,5.7239,174.65,174.61,15.92317126]
[1740104456216,10.19807126,174.66,174.61,15.92317126]
[1740104456516,0.04088509,174.65,174.61,15.96348019]
[1740104456716,0.04088509,174.65,174.61,5.76540893]
[1740104457217,0.04088509,174.65,174.62,5.7248]
[1740104458222,0.04088509,174.65,174.63,5.7245]
[1740104458813,0.04088509,174.65,174.61,0.04030893]
[1740104459413,0.04088509,174.65,174.64,5.7242]
[1740104459819,0.04088509,174.65,174.64,21.66100605]
[1740104460518,200.56,174.73,174.64,21.66100605]
[1740104460519,193.0,174.73,174.7,5.7219]
[1740104460720,5.721,174.74,174.7,5.7219]
[1740104461219,5.721,174.74,174.64,15.93680605]
[1740104461715,0.04135462,174.71,174.67,15.98007451]
[1740104462419,0.04135462,174.71,174.7,15.93680605]
[1740104463218,0.04135462,174.71,174.7,21.65900605]
[1740104465821,5.7198,174.78,174.7,15.93680605]
[1740104467024,0.03894866,174.76,174.73,15.93680605]
[1740104467420,0.03894866,174.76,174.75,5.7206]
[1740104470223,4.866e-05,174.76,174.75,5.7206]
[1740104472518,19.57720605,174.87,174.81,5.7185]
[1740104473524,5.7173,174.85,174.81,5.7185]
[1740104473725,5.7173,174.85,174.82,0.0407522]
[1740104474927,5.7176,174.84,174.82,0.0407522]
[1740104476832,5.718,174.83,174.82,0.0407522]
[1740104477126,0.04020677,174.86,174.82,0.0407522]
[1740104477329,5.7176,174.85,174.82,0.0407522]
[1740104478024,5.7177,174.84,174.82,0.0407522]
[1740104479228,5.7174,174.85,174.82,5.7588522]
[1740104479428,0.04020677,174.86,174.82,0.0407522]
[1740104480929,0.04020677,174.86,174.85,5.7173]
[1740104481528,15.93680605,174.95,174.83,15.93680605]
[1740104481734,21.25470605,174.95,174.87,5.7165]
[1740104482231,21.25470605,174.95,174.9,5.7156]
[1740104482423,21.25470605,174.95,174.83,15.93680605]
[1740104482824,0.02039983,174.91,174.9,5.7157]
[1740104483033,0.02039983,174.91,174.84,5.5122]
[1740104483231,0.02039983,174.91,174.89,0.04329801]
[1740104484536,5.73579983,174.91,174.89,0.04329801]
[1740104484737,0.02039983,174.91,174.89,0.04329801]
[1740104485838,5.7157,174.9,174.89,0.04329801]
[1740104486737,0.02039983,174.91,174.8,15.93680605]
[1740104486932,15.93680605,174.92,174.8,15.93680605]
[1740104487529,5.7164,174.88,174.84,5.7174]
[1740104487733,15.93680605,174.92,174.8,15.93680605]
[1740104487935,0.03966092,174.88,174.84,0.03679182]
[1740104488533,15.93680605,174.86,174.84,0.03679182]
[1740104488734,5.7173,174.85,174.84,0.03679182]
[1740104491438,5.7173,174.85,174.84,9.182e-05]
[1740104496341,15.93680605,174.86,174.71,15.93680605]
[1740104496535,15.93680605,174.82,174.71,15.93680605]
[1740104496733,3.5623,174.81,174.71,15.93680605]
[1740104497341,3.5623,174.81,174.73,5.721]
[1740104497543,0.0406289,174.78,174.74,0.03944973]
[1740104497742,5.7205,174.76,174.74,0.03944973]
[1740104498136,0.0406289,174.78,174.74,0.03944973]
[1740104498835,5.7205,174.76,174.74,0.03944973]
[1740104499240,0.0406289,174.78,174.74,0.03944973]
[1740104499742,5.7201,174.77,174.74,5.76034973]
[1740104500045,0.0406289,174.78,174.74,0.03944973]
[1740104500240,5.7201,174.77,174.74,0.03944973]
[1740104501244,5.7201,174.77,174.74,5.76034973]
[1740104501444,5.7203,174.76,174.74,0.03944973]
[1740104501646,0.0406289,174.78,174.74,0.03944973]
[1740104502144,5.72,174.77,174.74,5.76014973]
[1740104503045,5.72,174.77,174.75,5.7205]
[1740104503445,0.0406289,174.78,174.74,0.03944973]
[1740104503639,5.7205,174.76,174.74,0.03944973]
[1740104503845,0.0406289,174.78,174.74,0.03944973]
[1740104504247,0.0406289,174.78,174.77,5.7199]
[1740104504745,5.7176,174.85,174.77,10.17698892]
[1740104504945,12.01248892,174.86,174.81,5.7185]
[1740104505147,5.718,174.83,174.8,10.17698892]
[1740104505545,10.17698892,174.84,174.78,10.17698892]
[1740104505745,5.7193,174.79,174.78,10.17698892]
[1740104506543,5.7193,174.79,174.77,0.03703874]
[1740104507144,0.03742717,174.83,174.77,5.75693874]
[1740104507346,0.03742717,174.83,174.77,0.03703874]
[1740104507542,15.94468973,174.83,174.77,0.03703874]
[1740104507739,3.4931,174.82,174.77,0.03703874]
[1740104508248,5.7196,174.78,174.77,0.03703874]
[1740104515252,0.04029851,174.79,174.68,15.90726256]
[1740104515447,5.7217,174.72,174.68,15.90726256]
[1740104515753,15.90726256,174.8,174.68,15.90726256]
[1740104516049,15.90726256,174.77,174.69,5.7224]
[1740104516353,15.90726256,174.77,174.68,15.90726256]
[1740104516555,5.7214,174.73,174.71,0.04268349]
[1740104517248,5.7209,174.74,174.71,5.76448349]
[1740104518948,5.7209,174.74,174.72,5.7216]
[1740104520858,0.03652762,174.75,174.72,5.7216]
[1740104521155,5.75732762,174.75,174.72,5.7216]
[1740104522158,0.03652762,174.75,174.74,5.7209]
[1740104523959,0.03652762,174.75,174.71,0.04268349]
[1740104524659,5.7213,174.73,174.71,0.04268349]
[1740104525359,0.03652762,174.75,174.71,0.04268349]
[1740104525555,5.7216,174.72,174.71,8.349e-05]
[1740104526651,15.91743226,174.72,174.71,8.349e-05]
[1740104527451,10.19583226,174.72,174.71,8.349e-05]
[1740104527654,10.19583226,174.74,174.71,8.349e-05]
[1740104527952,0.03652762,174.75,174.72,10.19583226]
[1740104528157,0.03652762,174.75,174.74,5.7209]
[1740104528354,0.03652762,174.75,174.74,15.91673226]
[1740104528553,0.03652762,174.75,174.74,10.19583226]
[1740104528760,0.03652762,174.75,174.72,5.7212]
[1740104529160,0.03652762,174.75,174.71,15.91278201]
[1740104529460,0.03652762,174.75,174.71,21.63448201]
[1740104529760,0.03652762,174.75,174.71,8.349e-05]
[1740104530258,5.7212,174.74,174.71,8.349e-05]
[1740104530454,5.7212,174.74,174.71,5.72198349]
[1740104531466,0.03652762,174.75,174.72,5.7215]
[1740104531762,0.03652762,174.75,174.71,8.349e-05]
[1740104533054,0.03652762,174.75,174.72,5.7215]
[1740104534360,0.03652762,174.75,174.71,5.72198349]
[1740104535162,5.7211,174.74,174.71,5.72198349]
[1740104535962,0.03652762,174.75,174.71,8.349e-05]
[1740104537262,5.7216,174.72,174.71,8.349e-05]
[1740104538457,5.7242,174.64,174.6,4.31623968]
[1740104538867,15.91269852,174.7,174.6,2.44543968]
[1740104539071,15.91269852,174.7,174.6,0.68863968]
[1740104539262,3.5683,174.69,174.6,0.68863968]
[1740104539464,3.5683,174.69,174.61,5.7251]
[1740104539767,0.04152922,174.66,174.63,0.0361953]
[1740104540666,0.04152922,174.66,174.63,5.7604953]
[1740104541270,5.76502922,174.66,174.63,5.7604953]
[1740104542469,5.7239,174.65,174.63,5.7604953]
[1740104543171,5.76512922,174.66,174.63,5.7604953]
[1740104544173,5.7239,174.65,174.63,0.0361953]
[1740104544374,0.04152922,174.66,174.63,0.0361953]
[1740104545372,5.7241,174.65,174.63,0.0361953]
[1740104545673,0.04152922,174.66,174.63,0.0361953]
[1740104545873,5.76522922,174.66,174.63,5.7605953]
[1740104547072,0.04152922,174.66,174.64,5.7241]
[1740104547477,0.04152922,174.66,174.63,0.0361953]
[1740104547670,5.76522922,174.66,174.63,5.7605953]
[1740104548074,0.04152922,174.66,174.63,5.7605953]
[1740104548574,5.76522922,174.66,174.63,5.7605953]
[1740104549379,0.04152922,174.66,174.63,5.7605953]
[1740104549683,5.7239,174.65,174.63,5.7605953]
[1740104549979,5.7241,174.65,174.63,0.0361953]
[1740104550580,5.7241,174.65,174.63,5.7605953]
[1740104550974,5.7241,174.65,174.63,0.0361953]
[1740104551173,5.7242,174.64,174.63,0.0361953]
[1740104553678,15.9227803,174.64,174.63,0.0361953]
[1740104554069,5.7242,174.64,174.63,0.0361953]
[1740104556682,15.9227803,174.64,174.63,0.0361953]
[1740104561678,15.9227803,174.64,174.63,9.53e-05]
[1740104561879,10.1985803,174.64,174.53,5.7277]
[1740104562084,10.1985803,174.59,174.53,5.7277]
[1740104562285,5.7267,174.57,174.54,5.7273]
[1740104562485,10.1985803,174.59,174.54,5.7273]
[1740104562787,10.1985803,174.59,174.52,10.1985803]
[1740104562980,0.04152668,174.58,174.55,0.04173505]
[1740104563284,5.7265,174.57,174.55,0.04173505]
[1740104563489,0.04152668,174.58,174.55,0.04173505]
[1740104564287,5.7267,174.57,174.55,0.04173505]
[1740104564997,5.7268,174.56,174.55,0.04173505]
[1740104568798,5.7281,174.53,174.5,6.41766679]
[1740104568996,10.1985803,174.53,174.46,10.1985803]
[1740104570000,0.03776794,174.51,174.48,0.03647621]
[1740104570698,0.03776794,174.51,174.5,5.7288]
[1740104573102,0.03776794,174.51,174.5,15.9273803]
[1740104573304,203.1985803,174.59,174.5,10.1985803]
[1740104573491,10.1985803,174.59,174.53,10.1985803]
[1740104573900,10.1985803,174.61,174.58,5.7261]
[1740104574603,10.23688263,174.61,174.58,5.76770858]
[1740104575004,15.96208263,174.61,174.58,5.76770858]
[1740104575204,15.96208263,174.61,174.58,0.04160858]
[1740104575801,5.7255,174.6,174.58,0.04160858]
[1740104576796,10.23688263,174.61,174.58,0.04160858]
[1740104576995,5.7258,174.59,174.58,0.04160858]
[1740104582407,15.9243803,174.59,174.58,0.04160858]
[1740104585004,5.7258,174.59,174.58,0.04160858]
[1740104585414,15.9243803,174.59,174.58,0.04160858]
[1740104587213,10.1985803,174.59,174.51,10.1985803]
[1740104587414,10.1985803,174.56,174.51,10.1985803]
[1740104588002,5.7273,174.55,174.51,10.1985803]
[1740104588209,10.1985803,174.56,174.51,10.1985803]
[1740104588408,0.03869965,174.55,174.54,5.7275]
[1740104588615,10.1985803,174.6,174.53,10.1985803]
[1740104588813,0.03728091,174.56,174.53,10.2364377]
[1740104589013,0.03728091,174.56,174.55,5.7271]
[1740104589812,0.03728091,174.56,174.54,5.7273]
[1740104590006,0.03728091,174.56,174.53,10.2364377]
[1740104591011,0.03728091,174.56,174.55,5.7271]
[1740104593607,5.7251,174.62,174.59,5.7255]
[1740104593909,10.1985803,174.65,174.57,10.1985803]
[1740104594809,5.76395034,174.63,174.6,5.7253]
[1740104595314,0.03925034,174.63,174.59,0.04210809]
[1740104595613,10.23783064,174.63,174.59,5.76770809]
[1740104596410,5.7251,174.62,174.59,5.76770809]
[1740104597012,5.7253,174.61,174.59,5.76770809]
[1740104597914,5.7249,174.62,174.59,5.76770809]
[1740104598512,5.7249,174.62,174.6,5.7255]
[1740104599318,5.7253,174.61,174.59,5.76780809]
[1740104600917,5.7255,174.6,174.59,0.04210809]
[1740104602008,5.7255,174.6,174.59,8.09e-06]
[1740104603219,5.7275,174.54,174.49,3.6976]
[1740104603415,5.7275,174.54,174.5,10.1985803]
[1740104603713,5.7275,174.54,174.51,5.7284]
[1740104604322,5.77121878,174.54,174.51,5.76920501]
[1740104604517,5.77131878,174.54,174.51,0.04080501]
[1740104604817,0.04371878,174.54,174.51,0.04080501]
[1740104605010,0.04371878,174.54,174.51,5.76900501]
[1740104605615,10.24229908,174.54,174.51,0.04080501]
[1740104605818,15.9266803,174.52,174.51,0.04080501]
[1740104606821,10.1985803,174.52,174.42,13.8175803]
[1740104607023,5.7298,174.47,174.42,13.8175803]
[1740104607219,10.1985803,174.48,174.42,10.1985803]
[1740104607415,5.7298,174.47,174.42,10.1985803]
[1740104607619,10.1985803,174.46,174.4,19.81565703]
[1740104607915,10.1985803,174.46,174.4,18.03615703]
[1740104608119,5.77295503,174.45,174.41,5.76878526]
[1740104608621,0.04255503,174.45,174.41,0.03738526]
[1740104609118,0.04255503,174.45,174.42,10.1985803]
[1740104609324,0.04255503,174.45,174.44,5.7307]
[1740104612324,10.1985803,174.54,174.44,10.1985803]
[1740104612519,5.7272,174.55,174.5,10.1985803]
[1740104612921,17.7185803,174.56,174.5,10.1985803]
[1740104613626,0.04117224,174.55,174.53,5.7276]
[1740104614920,0.04117224,174.55,174.54,5.7275]
[1740104618830,0.04117224,174.55,174.51,15.99395033]
[1740104620122,0.04117224,174.55,174.51,0.03981847]
[1740104621224,5.7277,174.54,174.51,5.76811847]
[1740104622525,0.04117224,174.55,174.51,0.03981847]
[1740104622526,5.7281,174.52,174.51,0.03981847]
[1740104623819,15.95413186,174.53,174.43,5.7308]
[1740104624221,5.729,174.5,174.41,1.7744]
[1740104624421,15.95413186,174.53,174.46,5.7298]
[1740104624734,15.95413186,174.53,174.42,15.95413186]
[1740104624931,5.73,174.47,174.43,5.7309]
[1740104625130,5.73,174.47,174.46,0.03841259]
[1740104625328,5.76684338,174.47,174.46,0.03841259]
[1740104626032,0.03684338,174.47,174.46,0.03841259]
[1740104627829,5.76664338,174.47,174.46,0.03841259]
[1740104633236,15.99097524,174.47,174.36,15.95413186]
[1740104633438,15.95413186,174.47,174.36,15.95413186]
[1740104633737,5.7313,174.43,174.4,5.732]
[1740104633937,15.95413186,174.47,174.36,15.95413186]
[1740104634338,0.04092338,174.43,174.4,0.0415215]
[1740104635236,0.04092338,174.43,174.42,5.7314]
[1740104637542,0.04092338,174.43,174.4,0.0415215]
[1740104637543,15.99600991,174.43,174.4,0.0415215]
[1740104637745,10.26480991,174.43,174.4,0.0415215]
[1740104637942,5.7316,174.42,174.4,0.0415215]
[1740104638846,10.26480991,174.43,174.4,0.0415215]
[1740104639147,15.99610991,174.43,174.4,0.0415215]
[1740104639446,10.26480991,174.43,174.4,0.0415215]
[1740104639645,10.22388653,174.41,174.4,0.0415215]
[1740104640546,15.95558653,174.41,174.4,0.0415215]
[1740104644951,10.22388653,174.41,174.29,1.7578]
[1740104645152,10.22388653,174.36,174.29,11.98168653]
[1740104645359,10.22388653,174.36,174.29,10.22388653]
[1740104645751,5.7339,174.35,174.29,10.22388653]
[1740104646151,0.03684909,174.34,174.3,0.04092648]
[1740104646457,0.03684909,174.34,174.32,5.7345]
[1740104647259,0.03684909,174.34,174.33,5.7344]
[1740104647457,0.03684909,174.34,174.33,15.95828653]
[1740104648855,10.22388653,174.42,174.33,10.22388653]
[1740104649056,10.22388653,174.42,174.35,10.22388653]
[1740104649654,10.22388653,174.4,174.33,10.22388653]
[1740104649855,10.22388653,174.38,174.33,10.22388653]
[1740104650062,10.26464426,174.38,174.35,0.04333167]
[1740104650258,0.04075773,174.38,174.35,0.04333167]
[1740104651253,0.04075773,174.38,174.36,5.7331]
[1740104651962,0.04075773,174.38,174.36,5.7334]
[1740104652260,10.26464426,174.38,174.35,0.04333167]
[1740104652662,10.22388653,174.36,174.35,0.04333167]
[1740104653262,15.95728653,174.36,174.35,0.04333167]
[1740104653762,5.7352,174.31,174.28,10.22388653]
[1740104654066,10.22388653,174.3,174.24,10.22388653]
[1740104654363,10.22388653,174.28,174.22,10.22388653]
[1740104654566,16.00560212,174.31,174.2,0.690182]
[1740104655058,0.03954395,174.27,174.24,0.0416652]
[1740104656567,0.03954395,174.27,174.26,5.7367]
[1740104661566,1.809,174.36,174.25,16.00560212]
[1740104661867,1.809,174.36,174.26,1.7497]
[1740104662164,1.809,174.36,174.33,5.7341]
[1740104662360,19.67670212,174.37,174.26,1.7497]
[1740104662563,7.54,174.39,174.28,16.00560212]
[1740104662768,7.54,174.39,174.26,1.7497]
[1740104662769,3.176e-05,174.33,174.32,5.7347]
[1740104663067,1.7372,174.41,174.31,16.00560212]
[1740104663269,16.00560212,174.4,174.31,16.00560212]
[1740104663467,16.00560212,174.4,174.28,16.00560212]
[1740104663662,5.7325,174.39,174.28,16.00560212]
[1740104664061,0.03823809,174.35,174.32,0.04033864]
[1740104664459,0.03823809,174.35,174.34,5.734]
[1740104664671,0.03823809,174.35,174.32,0.04033864]
[1740104664870,0.03823809,174.35,174.33,5.7342]
[1740104665264,0.03823809,174.35,174.32,0.04033864]
[1740104666568,5.7341,174.34,174.32,0.04033864]
[1740104667370,5.7344,174.33,174.32,0.04033864]
[1740104669464,17.80140212,174.34,174.22,17.85700212]
[1740104669773,5.736,174.28,174.25,5.7367]
[1740104670676,5.77967911,174.28,174.25,5.77816356]
[1740104671269,0.04367911,174.28,174.25,0.04146356]
[1740104671475,5.7367,174.26,174.25,0.04146356]
[1740104672268,5.77997911,174.28,174.25,0.04146356]
[1740104672468,0.04367911,174.28,174.25,0.04146356]
[1740104673275,0.04367911,174.28,174.25,5.77836356]
[1740104674783,0.04367911,174.28,174.25,0.04146356]
[1740104675077,0.04367911,174.28,174.26,5.7367]
[1740104677280,0.04367911,174.28,174.27,5.7363]
[1740104684686,193.0,174.35,174.25,16.04706568]
[1740104684986,17.85910212,174.4,174.35,5.7335]
[1740104685287,17.85910212,174.4,174.28,16.00560212]
[1740104685288,5.733,174.38,174.28,16.00560212]
[1740104685587,19.70660212,174.4,174.34,5.7338]
[1740104685787,5.7331,174.37,174.34,5.7338]
[1740104685989,5.7331,174.37,174.35,0.03715107]
[1740104686290,5.7331,174.37,174.28,16.00560212]
[1740104686479,5.7331,174.37,174.34,0.04184647]
[1740104686883,0.03734897,174.37,174.34,0.04184647]
[1740104687085,5.7337,174.35,174.34,0.04184647]
[1740104687790,21.77605109,174.37,174.34,0.04184647]
[1740104687991,21.77605109,174.37,174.34,5.77574647]
[1740104688789,5.7335,174.36,174.34,0.04184647]
[1740104689488,5.7335,174.36,174.34,5.77584647]
[1740104690791,0.03734897,174.37,174.34,0.04184647]
[1740104690988,0.03734897,174.37,174.36,5.7334]
[1740104691189,0.03734897,174.37,174.34,0.04184647]
[1740104692190,5.77054897,174.37,174.34,5.77574647]
[1740104692692,0.03734897,174.37,174.34,0.04184647]
[1740104692893,5.7337,174.35,174.34,0.04184647]
[1740104693193,0.03734897,174.37,174.34,0.04184647]
[1740104693390,5.7336,174.36,174.34,0.04184647]
[1740104693596,0.03734897,174.37,174.34,0.04184647]
[1740104694086,5.7337,174.35,174.34,0.04184647]
[1740104694394,0.03734897,174.37,174.34,0.04184647]
[1740104694592,5.7336,174.36,174.34,0.04184647]
[1740104694896,10.27147174,174.37,174.34,0.04184647]
[1740104697597,0.03734897,174.37,174.34,0.04184647]
[1740104698000,0.03734897,174.37,174.36,5.7334]
[1740104699503,0.03734897,174.37,174.34,10.27596924]
[1740104699702,0.03734897,174.37,174.34,0.04184647]
[1740104700305,0.03734897,174.37,174.36,5.7334]
[1740104702303,0.03734897,174.37,174.35,5.7334]
[1740104703298,0.03734897,174.37,174.36,15.96752277]
[1740104704607,0.03734897,174.37,174.36,5.7334]
[1740104705204,4.897e-05,174.37,174.36,5.7334]
[1740104705505,5.7306,174.45,174.43,5.7311]
[1740104705905,5.7308,174.44,174.41,5.7315]
[1740104706213,15.97841933,174.46,174.34,15.97841933]
[1740104706513,0.03983204,174.41,174.37,0.03763115]
[1740104707515,0.03983204,174.41,174.4,5.7321]
[1740104708714,0.03983204,174.41,174.39,5.7323]
[1740104709411,0.03983204,174.41,174.37,0.03763115]
[1740104709807,5.7326,174.39,174.37,0.03763115]
[1740104710711,5.7327,174.38,174.37,0.03763115]
[1740104710905,5.7327,174.38,174.37,3.115e-05]
[1740104713513,21.34721933,174.4,174.37,3.115e-05]
[1740104713514,27.07931933,174.4,174.37,3.115e-05]
[1740104713816,15.97841933,174.4,174.37,3.115e-05]
[1740104714017,0.03983204,174.41,174.37,3.115e-05]
[1740104714212,0.03983204,174.41,174.39,5.7321]
[1740104714408,0.03983204,174.41,174.37,3.115e-05]
[1740104714608,0.03983204,174.41,174.4,5.7321]
[1740104715812,0.03983204,174.41,174.37,3.115e-05]
[1740104716612,16.01825137,174.41,174.37,3.115e-05]
[1740104717017,5.7327,174.38,174.37,3.115e-05]
[1740104718323,21.71111933,174.38,174.37,3.115e-05]
[1740104719619,5.251,174.4,174.37,3.115e-05]
[1740104720421,5.7327,174.38,174.37,3.115e-05]
[1740104721125,10.9831,174.4,174.37,3.115e-05]
[1740104721324,5.251,174.4,174.37,3.115e-05]
[1740104722524,5.7324,174.39,174.37,3.115e-05]
[1740104722728,5.251,174.4,174.37,3.115e-05]
[1740104722930,5.7327,174.38,174.37,3.115e-05]
[1740104723124,21.71111933,174.38,174.37,3.115e-05]
[1740104727129,5.7327,174.38,174.37,3.115e-05]
[1740104732229,5.7347,174.32,174.27,3.6195]
[1740104732537,5.7347,174.32,174.29,5.7355]
[1740104733130,5.7347,174.32,174.29,5.77924284]
[1740104733333,5.77596628,174.32,174.29,5.77924284]
[1740104735441,0.04126628,174.32,174.3,5.7351]
[1740104735730,0.04126628,174.32,174.29,0.04374284]
[1740104736038,0.04126628,174.32,174.31,5.735]
[1740104736437,14.09593362,174.4,174.3,15.97841933]
[1740104736634,11.94455289,174.4,174.37,5.7329]
[1740104736939,11.94455289,174.4,174.33,10.23095289]
[1740104737139,11.94455289,174.4,174.36,5.7332]
[1740104737542,11.98118996,174.4,174.36,5.77101739]
[1740104738237,10.23095289,174.38,174.36,0.03781739]
[1740104738642,1.75023707,174.4,174.36,0.03781739]
[1740104738643,21.72786696,174.37,174.36,0.03781739]
[1740104741539,5.7324,174.39,174.36,5.77101739]
[1740104742250,0.03663707,174.4,174.36,0.03781739]
[1740104742744,0.03663707,174.4,174.39,5.7324]
[1740104743832,0.03663707,174.4,174.36,0.03781739]
[1740104745242,5.76873707,174.4,174.37,5.733]
[1740104745640,0.03663707,174.4,174.37,5.733]
[1740104745841,5.7324,174.39,174.36,5.77111739]
[1740104746541,5.733,174.37,174.36,0.03781739]
[1740104749945,16.03150403,174.4,174.36,0.03781739]
[1740104750143,5.7328,174.38,174.36,0.03781739]
[1740104750645,0.03663707,174.4,174.36,0.03781739]
[1740104751746,0.03663707,174.4,174.39,5.7324]
[1740104753446,0.03663707,174.4,174.38,5.7326]
[1740104753639,0.03663707,174.4,174.36,0.03781739]
[1740104753842,0.03663707,174.4,174.39,5.7324]
[1740104757447,193.0,174.48,174.44,5.7306]
[1740104757643,15.99486696,174.49,174.44,5.7306]
[1740104757844,5.7299,174.47,174.37,1.7757]
[1740104758247,15.99486696,174.49,174.45,5.7302]
[1740104758538,15.99486696,174.49,174.37,1.7757]
[1740104758745,15.99486696,174.49,174.44,5.7306]
[1740104758945,0.04302634,174.45,174.44,5.7306]
[1740104759341,0.04302634,174.45,174.37,1.7757]
[1740104759342,0.04302634,174.45,174.43,0.03947997]
[1740104759546,0.04302634,174.45,174.37,1.7757]
[1740104759854,0.04302634,174.45,174.42,0.04297971]
[1740104761052,5.7311,174.43,174.42,0.04297971]
[1740104763153,5.7328,174.38,174.34,3.4944]
[1740104763751,15.99486696,174.43,174.34,3.4944]
[1740104764454,0.04035906,174.4,174.37,0.04078603]
[1740104764654,5.7326,174.39,174.37,0.04078603]
[1740104767451,0.04035906,174.4,174.38,5.7327]
[1740104767656,0.04035906,174.4,174.37,0.04078603]
[1740104768157,0.04035906,174.4,174.38,5.7327]
[1740104768356,0.04035906,174.4,174.37,0.04078603]
[1740104768855,0.04035906,174.4,174.39,5.7324]
[1740104771345,0.04035906,174.4,174.37,5.77378603]
[1740104771760,5.77265906,174.4,174.37,5.77378603]
[1740104772461,0.04035906,174.4,174.37,0.04078603]
[1740104773053,0.04035906,174.4,174.37,5.77358603]
[1740104773662,5.77265906,174.4,174.37,5.77358603]
[1740104774864,5.7327,174.39,174.37,0.04078603]
[1740104776667,0.04035906,174.4,174.37,0.04078603]
[1740104776864,5.7327,174.38,174.37,0.04078603]
[1740104780775,21.76742602,174.4,174.37,5.77368603]
[1740104780976,16.03522602,174.4,174.37,5.77368603]
[1740104781277,16.03522602,174.4,174.37,0.04078603]
[1740104782876,5.7327,174.38,174.37,0.04078603]
[1740104783581,5.734,174.35,174.29,15.99486696]
[1740104783981,5.734,174.35,174.32,5.7346]
[1740104784279,5.7344,174.33,174.28,1.8341]
[1740104784474,15.99486696,174.37,174.29,5.7355]
[1740104784675,0.03886068,174.32,174.29,5.77901285]
[1740104785076,5.77376068,174.32,174.29,5.77901285]
[1740104785372,0.03886068,174.32,174.29,0.04351285]
[1740104785777,5.7353,174.3,174.29,0.04351285]
[1740104786885,5.7353,174.3,174.29,1.285e-05]
[1740104788587,5.7366,174.27,174.16,32.04071427]
[1740104788885,15.99486696,174.28,174.16,32.04071427]
[1740104789091,1.846,174.3,174.19,15.99486696]
[1740104789878,0.03895988,174.26,174.23,0.04210206]
[1740104790078,0.03895988,174.26,174.23,5.77950206]
[1740104790684,0.03895988,174.26,174.24,5.7373]
[1740104791776,0.03895988,174.26,174.23,0.04210206]
[1740104791977,5.77565988,174.26,174.23,5.77950206]
[1740104792181,0.03895988,174.26,174.23,5.77950206]
[1740104793087,0.03895988,174.26,174.25,5.737]
[1740104798283,0.03895988,174.26,174.24,5.7371]
[1740104798490,0.03895988,174.26,174.23,0.04210206]
[1740104798690,10.2860349,174.26,174.23,0.04210206]
[1740104798890,5.7372,174.25,174.23,0.04210206]
[1740104799090,10.2860349,174.26,174.23,0.04210206]
[1740104799495,5.7372,174.25,174.23,0.04210206]
[1740104800896,5.7373,174.24,174.23,0.04210206]
[1740104802294,5.7373,174.25,174.23,0.04210206]
[1740104803000,15.98437502,174.24,174.23,0.04210206]
[1740104803197,10.24707502,174.24,174.1,161.6239]
[1740104803497,5.7395,174.18,174.15,5.7401]
[1740104803690,10.24707502,174.19,174.13,10.24707502]
[1740104804087,5.74,174.16,174.13,15.98787502]
[1740104804295,10.24707502,174.19,174.13,15.98787502]
[1740104804493,0.04244851,174.16,174.13,10.28554878]
[1740104804698,0.04244851,174.16,174.13,0.03847376]
[1740104805094,0.04244851,174.16,174.15,5.7403]
[1740104805299,0.04244851,174.16,174.13,0.03847376]
[1740104806201,0.04244851,174.16,174.14,5.7406]
[1740104806597,0.04244851,174.16,174.13,0.03847376]
[1740104806798,0.04244851,174.16,174.14,5.7406]
[1740104806999,0.04244851,174.16,174.13,0.03847376]
[1740104807400,0.04244851,174.16,174.15,5.7403]
[1740104810597,4.851e-05,174.16,174.15,5.7403]
[1740104816211,4.851e-05,174.16,174.13,0.03847376]
[1740104816508,4.851e-05,174.16,174.14,5.7405]
[1740104817303,4.851e-05,174.16,174.13,0.03847376]
[1740104817511,4.851e-05,174.16,174.15,5.7403]
[1740104819307,4.851e-05,174.16,174.15,21.76596673]
[1740104819902,4.851e-05,174.16,174.15,25.41116673]
[1740104820401,5.7367,174.26,174.23,5.7376]
[1740104820606,16.02566673,174.27,174.15,19.67086673]
[1740104820804,5.737,174.25,174.15,19.67086673]
[1740104821417,0.04021434,174.22,174.18,0.03674202]
[1740104821914,0.04021434,174.22,174.21,5.738]
[1740104823015,0.04021434,174.22,174.18,0.03674202]
[1740104824119,5.739,174.19,174.18,0.03674202]
[1740104830735,15.99567242,174.19,174.18,0.03674202]
[1740104832338,5.74,174.16,174.12,10.25667242]
[1740104832734,5.74,174.16,174.13,5.7407]
[1740104833134,5.7409,174.14,174.1,10.94734752]
[1740104833336,10.25667242,174.15,174.1,10.94734752]
[1740104833537,0.04175939,174.14,174.1,10.98919378]
[1740104834738,0.04175939,174.14,174.1,0.73252136]